[Event "Titled Tuesday Blitz April 25 Early 2023"]
[White "Gatterer, Florian"]
[Black "Chakravarthi Reddy, M"]
[WhiteFideId "811688"]
[BlackFideId "25009532"]
[WhiteElo "2221"]
[BlackElo "2201"]
[Result "1-0"]
[Round "05"]
[TimeControl "180+2"]
[Date "2023.04.25"]
[WhiteClock "0:00:13"]
[BlackClock "0:00:02"]

1. c4 {[%clk 0:03:00]}  e5 {[%clk 0:02:59]} 2. Nc3 {[%clk 0:03:00]}  Bb4 {[%clk 0:02:59]} 3. Nd5 {[%clk 0:02:59]}  a5 {[%clk 0:02:58]} 4. a3 {[%clk 0:02:56]}  Be7 {[%clk 0:02:57]} 5. e3 {[%clk 0:02:55]}  c6 {[%clk 0:02:57]} 6. Nxe7 {[%clk 0:02:55]}  Nxe7 {[%clk 0:02:57]} 7. d4 {[%clk 0:02:55]}  exd4 {[%clk 0:02:57]} 8. Qxd4 {[%clk 0:02:55]}  O-O {[%clk 0:02:56]} 9. Nf3 {[%clk 0:02:54]}  d5 {[%clk 0:02:56]} 10. Bd2 {[%clk 0:02:47]}  c5 {[%clk 0:02:53]} 11. Qh4 {[%clk 0:02:40]}  Nbc6 {[%clk 0:02:40]} 12. cxd5 {[%clk 0:02:37]}  Qxd5 {[%clk 0:02:36]} 13. Bc4 {[%clk 0:02:32]}  Qf5 {[%clk 0:02:13]} 14. O-O {[%clk 0:02:24]}  Ng6 {[%clk 0:02:11]} 15. Qg3 {[%clk 0:02:20]}  Nce5 {[%clk 0:02:00]} 16. Bd5 {[%clk 0:02:01]}  Rd8 {[%clk 0:01:37]} 17. e4 {[%clk 0:02:00]}  Nxf3+ {[%clk 0:01:37]} 18. gxf3 {[%clk 0:01:56]}  Qe5 {[%clk 0:00:53]} 19. Bc3 {[%clk 0:01:42]}  Qe8 {[%clk 0:00:41]} 20. Rad1 {[%clk 0:01:36]}  Ra6 {[%clk 0:00:36]} 21. Kh1 {[%clk 0:01:33]}  Kh8 {[%clk 0:00:29]} 22. f4 {[%clk 0:01:31]}  f6 {[%clk 0:00:28]} 23. f5 {[%clk 0:01:16]}  Ne5 {[%clk 0:00:27]} 24. Rg1 {[%clk 0:01:14]}  Qe7 {[%clk 0:00:23]} 25. Bxe5 {[%clk 0:01:10]}  fxe5 {[%clk 0:00:23]} 26. f4 {[%clk 0:00:55]}  exf4 {[%clk 0:00:18]} 27. Qxf4 {[%clk 0:00:56]}  Rad6 {[%clk 0:00:18]} 28. Rde1 {[%clk 0:00:50]}  b5 {[%clk 0:00:17]} 29. h3 {[%clk 0:00:46]}  Bb7 {[%clk 0:00:17]} 30. Bxb7 {[%clk 0:00:34]}  Qxb7 {[%clk 0:00:18]} 31. Rg2 {[%clk 0:00:33]}  Rd4 {[%clk 0:00:18]} 32. Qf3 {[%clk 0:00:30]}  Re8 {[%clk 0:00:17]} 33. Rge2 {[%clk 0:00:30]}  c4 {[%clk 0:00:15]} 34. Kg2 {[%clk 0:00:29]}  Rd3 {[%clk 0:00:15]} 35. Qf4 {[%clk 0:00:27]}  Qf7 {[%clk 0:00:15]} 36. Re3 {[%clk 0:00:27]}  Rd2+ {[%clk 0:00:15]} 37. R1e2 {[%clk 0:00:27]}  Red8 {[%clk 0:00:15]} 38. Qf2 {[%clk 0:00:25]}  R2d3 {[%clk 0:00:13]} 39. Qf4 {[%clk 0:00:24]}  b4 {[%clk 0:00:13]} 40. axb4 {[%clk 0:00:24]}  axb4 {[%clk 0:00:13]} 41. e5 {[%clk 0:00:24]}  c3 {[%clk 0:00:11]} 42. bxc3 {[%clk 0:00:24]}  bxc3 {[%clk 0:00:11]} 43. e6 {[%clk 0:00:24]}  Qf6 {[%clk 0:00:11]} 44. Rxd3 {[%clk 0:00:20]}  Rxd3 {[%clk 0:00:09]} 45. e7 {[%clk 0:00:20]}  Qc6+ {[%clk 0:00:09]} 46. Kf2 {[%clk 0:00:17]}  Qe8 {[%clk 0:00:06]} 47. Qc4 {[%clk 0:00:16]}  Rxh3 {[%clk 0:00:04]} 48. Kg2 {[%clk 0:00:15]}  Rh5 {[%clk 0:00:02]} 49. Qe6 {[%clk 0:00:14]}  Rg5+ {[%clk 0:00:02]} 50. Kf2 {[%clk 0:00:13]} 1-0


[Site "https://www.chess.com"]

[Event "Titled Tuesday Blitz April 25 Early 2023"]
[White "Smith, Garrett L"]
[Black "Andrews, Todd"]
[WhiteFideId "2024829"]
[BlackFideId "2012456"]
[WhiteElo "2251"]
[BlackElo "2404"]
[Result "1-0"]
[Round "05"]
[TimeControl "180+2"]
[Date "2023.04.25"]
[WhiteClock "0:00:18"]
[BlackClock "0:00:08"]

1. e4 {[%clk 0:03:00]}  c5 {[%clk 0:02:58]} 2. a3 {[%clk 0:03:00]}  Nc6 {[%clk 0:02:56]} 3. b4 {[%clk 0:03:01]}  cxb4 {[%clk 0:02:55]} 4. axb4 {[%clk 0:03:02]}  d5 {[%clk 0:02:55]} 5. b5 {[%clk 0:03:00]}  Nb8 {[%clk 0:02:48]} 6. exd5 {[%clk 0:02:57]}  Qxd5 {[%clk 0:02:48]} 7. Nc3 {[%clk 0:02:57]}  Qe5+ {[%clk 0:02:47]} 8. Be2 {[%clk 0:02:57]}  Bg4 {[%clk 0:02:44]} 9. d4 {[%clk 0:02:51]}  Qe6 {[%clk 0:02:34]} 10. d5 {[%clk 0:02:12]}  Qe5 {[%clk 0:02:32]} 11. Bb2 {[%clk 0:02:07]}  Nd7 {[%clk 0:02:28]} 12. h3 {[%clk 0:02:01]}  Bxe2 {[%clk 0:02:27]} 13. Ngxe2 {[%clk 0:02:02]}  Ngf6 {[%clk 0:02:25]} 14. O-O {[%clk 0:02:00]}  g6 {[%clk 0:02:08]} 15. Re1 {[%clk 0:01:51]}  Bg7 {[%clk 0:02:04]} 16. Nd4 {[%clk 0:01:28]}  Qd6 {[%clk 0:02:02]} 17. Ba3 {[%clk 0:01:27]}  Nc5 {[%clk 0:02:01]} 18. Nb3 {[%clk 0:01:18]}  b6 {[%clk 0:01:56]} 19. Nxc5 {[%clk 0:01:10]}  bxc5 {[%clk 0:01:55]} 20. Na4 {[%clk 0:01:05]}  Rc8 {[%clk 0:01:43]} 21. c4 {[%clk 0:01:01]}  O-O {[%clk 0:01:42]} 22. Rb1 {[%clk 0:01:01]}  Nd7 {[%clk 0:01:25]} 23. Qc2 {[%clk 0:00:58]}  Nb6 {[%clk 0:01:20]} 24. Re2 {[%clk 0:00:54]}  Rfe8 {[%clk 0:01:14]} 25. Rbe1 {[%clk 0:00:52]}  Bd4 {[%clk 0:01:06]} 26. Re4 {[%clk 0:00:48]}  Qg3 {[%clk 0:00:51]} 27. Bb2 {[%clk 0:00:32]}  Qxf2+ {[%clk 0:00:41]} 28. Qxf2 {[%clk 0:00:32]}  Bxf2+ {[%clk 0:00:41]} 29. Kxf2 {[%clk 0:00:33]}  Nxa4 {[%clk 0:00:41]} 30. Ba1 {[%clk 0:00:32]}  Nb6 {[%clk 0:00:37]} 31. Rxe7 {[%clk 0:00:30]}  Rxe7 {[%clk 0:00:36]} 32. Rxe7 {[%clk 0:00:31]}  Nxc4 {[%clk 0:00:36]} 33. Rxa7 {[%clk 0:00:31]}  Rb8 {[%clk 0:00:28]} 34. Rc7 {[%clk 0:00:27]}  Nd6 {[%clk 0:00:24]} 35. Be5 {[%clk 0:00:19]}  Rd8 {[%clk 0:00:10]} 36. Bxd6 {[%clk 0:00:16]}  Rxd6 {[%clk 0:00:10]} 37. Rxc5 {[%clk 0:00:16]}  Kg7 {[%clk 0:00:10]} 38. Ke3 {[%clk 0:00:17]}  Kf6 {[%clk 0:00:11]} 39. Kd4 {[%clk 0:00:18]}  Kf5 {[%clk 0:00:11]} 40. Rc6 {[%clk 0:00:18]}  Rd7 {[%clk 0:00:11]} 41. b6 {[%clk 0:00:19]}  Rb7 {[%clk 0:00:09]} 42. Kc5 {[%clk 0:00:19]}  Kf4 {[%clk 0:00:09]} 43. Rc7 {[%clk 0:00:19]}  Rb8 {[%clk 0:00:09]} 44. Rxf7+ {[%clk 0:00:20]}  Kg3 {[%clk 0:00:09]} 45. Rxh7 {[%clk 0:00:20]}  Kxg2 {[%clk 0:00:10]} 46. Rg7 {[%clk 0:00:20]}  Kxh3 {[%clk 0:00:10]} 47. Rxg6 {[%clk 0:00:21]}  Kh4 {[%clk 0:00:11]} 48. Rc6 {[%clk 0:00:21]}  Kg5 {[%clk 0:00:11]} 49. Rc7 {[%clk 0:00:21]}  Kf6 {[%clk 0:00:11]} 50. Kc6 {[%clk 0:00:22]}  Ke5 {[%clk 0:00:10]} 51. b7 {[%clk 0:00:22]}  Rd8 {[%clk 0:00:08]} 52. Re7+ {[%clk 0:00:18]}  Kd4 {[%clk 0:00:08]} 53. Rd7 {[%clk 0:00:18]} 1-0


[Site "https://www.chess.com"]

[Event "Titled Tuesday Blitz April 25 Early 2023"]
[White "Kopczynski, Michal"]
[Black "Benaddi, Mouhcine"]
[WhiteFideId "1124200"]
[BlackFideId "9001050"]
[WhiteElo "2212"]
[BlackElo "2036"]
[Result "1-0"]
[Round "05"]
[TimeControl "180+2"]
[Date "2023.04.25"]
[WhiteClock "0:00:25"]
[BlackClock "0:00:05"]

1. e4 {[%clk 0:03:00]}  c6 {[%clk 0:02:59]} 2. d4 {[%clk 0:03:01]}  d5 {[%clk 0:02:55]} 3. e5 {[%clk 0:03:01]}  Bf5 {[%clk 0:02:52]} 4. g4 {[%clk 0:03:01]}  Be4 {[%clk 0:02:49]} 5. f3 {[%clk 0:03:02]}  Bg6 {[%clk 0:02:49]} 6. h4 {[%clk 0:03:02]}  h5 {[%clk 0:02:50]} 7. Bd3 {[%clk 0:02:57]}  Bxd3 {[%clk 0:02:47]} 8. Qxd3 {[%clk 0:02:58]}  e6 {[%clk 0:02:47]} 9. g5 {[%clk 0:02:55]}  Ne7 {[%clk 0:02:45]} 10. Ne2 {[%clk 0:02:55]}  Nf5 {[%clk 0:02:42]} 11. Nd2 {[%clk 0:02:50]}  c5 {[%clk 0:02:40]} 12. dxc5 {[%clk 0:02:46]}  Qc7 {[%clk 0:02:35]} 13. f4 {[%clk 0:02:40]}  Bxc5 {[%clk 0:02:32]} 14. Nb3 {[%clk 0:02:38]}  Bb6 {[%clk 0:02:28]} 15. Bd2 {[%clk 0:02:33]}  a5 {[%clk 0:02:19]} 16. O-O-O {[%clk 0:02:30]}  Nc6 {[%clk 0:02:12]} 17. Qb5 {[%clk 0:02:22]}  a4 {[%clk 0:02:06]} 18. Nc5 {[%clk 0:02:19]}  g6 {[%clk 0:01:44]} 19. Nxa4 {[%clk 0:02:14]}  Ra6 {[%clk 0:01:09]} 20. Bb4 {[%clk 0:02:13]}  Ba5 {[%clk 0:00:43]} 21. Ba3 {[%clk 0:01:52]}  Qd7 {[%clk 0:00:34]} 22. Nc5 {[%clk 0:01:50]}  Rb6 {[%clk 0:00:30]} 23. Qxb6 {[%clk 0:01:32]}  Bxb6 {[%clk 0:00:30]} 24. Nxd7 {[%clk 0:01:32]}  Kxd7 {[%clk 0:00:31]} 25. Rd3 {[%clk 0:01:26]}  Rc8 {[%clk 0:00:24]} 26. Kb1 {[%clk 0:01:24]}  Bf2 {[%clk 0:00:22]} 27. c4 {[%clk 0:01:21]}  d4 {[%clk 0:00:19]} 28. Bc5 {[%clk 0:01:06]}  Ke8 {[%clk 0:00:12]} 29. Rh2 {[%clk 0:00:38]}  Be3 {[%clk 0:00:09]} 30. b4 {[%clk 0:00:34]}  b6 {[%clk 0:00:05]} 31. b5 {[%clk 0:00:25]} 1-0


[Site "https://www.chess.com"]

[Event "Titled Tuesday Blitz April 25 Early 2023"]
[White "Petrova, Irina"]
[Black "Grossboss19"]
[WhiteFideId "14124122"]
[WhiteElo "2084"]
[BlackElo "2230"]
[Result "1-0"]
[Round "05"]
[TimeControl "180+2"]
[Date "2023.04.25"]
[WhiteClock "0:01:01"]
[BlackClock "0:00:24"]

1. e4 {[%clk 0:03:00]}  e6 {[%clk 0:02:52]} 2. d4 {[%clk 0:03:00]}  d5 {[%clk 0:02:52]} 3. Nc3 {[%clk 0:03:01]}  Nf6 {[%clk 0:02:40]} 4. Bg5 {[%clk 0:02:59]}  Be7 {[%clk 0:02:35]} 5. e5 {[%clk 0:02:58]}  Nfd7 {[%clk 0:02:34]} 6. Bxe7 {[%clk 0:02:59]}  Qxe7 {[%clk 0:02:35]} 7. f4 {[%clk 0:02:59]}  a6 {[%clk 0:02:33]} 8. Nf3 {[%clk 0:02:58]}  c5 {[%clk 0:02:33]} 9. Qd2 {[%clk 0:02:59]}  Nc6 {[%clk 0:02:32]} 10. dxc5 {[%clk 0:02:58]}  Nxc5 {[%clk 0:02:29]} 11. Bd3 {[%clk 0:02:57]}  b5 {[%clk 0:02:29]} 12. a3 {[%clk 0:02:56]}  f6 {[%clk 0:02:23]} 13. O-O {[%clk 0:02:48]}  O-O {[%clk 0:01:57]} 14. Rae1 {[%clk 0:02:46]}  f5 {[%clk 0:01:49]} 15. Ne2 {[%clk 0:02:43]}  Bb7 {[%clk 0:01:42]} 16. Ned4 {[%clk 0:02:42]}  Rac8 {[%clk 0:01:42]} 17. c3 {[%clk 0:02:32]}  Rfd8 {[%clk 0:01:39]} 18. Nxc6 {[%clk 0:02:32]}  Bxc6 {[%clk 0:01:37]} 19. Nd4 {[%clk 0:02:32]}  Be8 {[%clk 0:01:36]} 20. Bc2 {[%clk 0:02:20]}  Bh5 {[%clk 0:01:34]} 21. Qf2 {[%clk 0:02:20]}  Qe8 {[%clk 0:01:30]} 22. Qg3 {[%clk 0:02:13]}  a5 {[%clk 0:01:22]} 23. Re3 {[%clk 0:02:08]}  Rb8 {[%clk 0:01:19]} 24. Qg5 {[%clk 0:02:02]}  h6 {[%clk 0:01:00]} 25. Qh4 {[%clk 0:01:59]}  b4 {[%clk 0:00:53]} 26. axb4 {[%clk 0:01:58]}  axb4 {[%clk 0:00:53]} 27. Rg3 {[%clk 0:01:50]}  Bg6 {[%clk 0:00:51]} 28. Nc6 {[%clk 0:01:31]}  Qxc6 {[%clk 0:00:44]} 29. Rxg6 {[%clk 0:01:31]}  Kh7 {[%clk 0:00:43]} 30. Bxf5 {[%clk 0:01:25]}  Kh8 {[%clk 0:00:34]} 31. Rxh6+ {[%clk 0:01:02]}  gxh6 {[%clk 0:00:31]} 32. Qxh6+ {[%clk 0:01:03]}  Kg8 {[%clk 0:00:31]} 33. Bh7+ {[%clk 0:01:04]}  Kf7 {[%clk 0:00:29]} 34. Qg6+ {[%clk 0:01:02]}  Kf8 {[%clk 0:00:24]} 35. Qg8+ {[%clk 0:01:00]}  Ke7 {[%clk 0:00:24]} 36. Qg7+ {[%clk 0:01:01]} 1-0


[Site "https://www.chess.com"]

[Event "Titled Tuesday Blitz April 25 Early 2023"]
[White "Pourkashiyan, Atousa"]
[Black "Elaisaz"]
[WhiteFideId "12502014"]
[WhiteElo "2228"]
[BlackElo "2207"]
[Result "1-0"]
[Round "05"]
[TimeControl "180+2"]
[Date "2023.04.25"]
[WhiteClock "0:01:37"]
[BlackClock "0:00:29"]

1. e4 {[%clk 0:03:00]}  e5 {[%clk 0:02:49]} 2. Nf3 {[%clk 0:02:45]}  Nc6 {[%clk 0:02:49]} 3. Bb5 {[%clk 0:02:43]}  a6 {[%clk 0:02:43]} 4. Ba4 {[%clk 0:02:35]}  b5 {[%clk 0:02:34]} 5. Bb3 {[%clk 0:02:30]}  Bc5 {[%clk 0:02:34]} 6. c3 {[%clk 0:02:22]}  Nf6 {[%clk 0:02:26]} 7. O-O {[%clk 0:02:18]}  d6 {[%clk 0:02:19]} 8. d4 {[%clk 0:02:17]}  Bb6 {[%clk 0:02:19]} 9. dxe5 {[%clk 0:02:11]}  dxe5 {[%clk 0:02:17]} 10. Qe2 {[%clk 0:02:11]}  O-O {[%clk 0:02:12]} 11. Bg5 {[%clk 0:02:11]}  h6 {[%clk 0:02:08]} 12. Bh4 {[%clk 0:02:11]}  Qe7 {[%clk 0:01:48]} 13. Nbd2 {[%clk 0:02:05]}  Be6 {[%clk 0:01:29]} 14. Bd5 {[%clk 0:02:02]}  Bd7 {[%clk 0:01:19]} 15. Rfe1 {[%clk 0:01:54]}  Rad8 {[%clk 0:01:07]} 16. Nf1 {[%clk 0:01:54]}  Nb8 {[%clk 0:00:52]} 17. Ne3 {[%clk 0:01:44]}  c6 {[%clk 0:00:51]} 18. Bb3 {[%clk 0:01:44]}  g5 {[%clk 0:00:43]} 19. Nxg5 {[%clk 0:01:43]}  hxg5 {[%clk 0:00:42]} 20. Bxg5 {[%clk 0:01:44]}  c5 {[%clk 0:00:33]} 21. Qf3 {[%clk 0:01:44]}  Kg7 {[%clk 0:00:29]} 22. Nd5 {[%clk 0:01:37]} 1-0


[Site "https://www.chess.com"]

[Event "Titled Tuesday Blitz April 25 Early 2023"]
[White "Mouhamad, Joachim"]
[Black "Putri, Regita Desyari"]
[WhiteFideId "656410"]
[BlackFideId "7109083"]
[WhiteElo "2125"]
[BlackElo "1930"]
[Result "1-0"]
[Round "05"]
[TimeControl "180+2"]
[Date "2023.04.25"]
[WhiteClock "0:00:09"]
[BlackClock "0:00:03"]

1. e4 {[%clk 0:03:00]}  e5 {[%clk 0:02:59]} 2. Nf3 {[%clk 0:03:00]}  Nc6 {[%clk 0:02:58]} 3. Bb5 {[%clk 0:03:00]}  a6 {[%clk 0:02:58]} 4. Ba4 {[%clk 0:03:00]}  Nf6 {[%clk 0:02:57]} 5. O-O {[%clk 0:02:59]}  Be7 {[%clk 0:02:56]} 6. d3 {[%clk 0:02:59]}  b5 {[%clk 0:02:52]} 7. Bb3 {[%clk 0:02:59]}  O-O {[%clk 0:02:53]} 8. a4 {[%clk 0:02:57]}  Rb8 {[%clk 0:02:52]} 9. axb5 {[%clk 0:02:56]}  axb5 {[%clk 0:02:53]} 10. Re1 {[%clk 0:02:40]}  d6 {[%clk 0:02:47]} 11. h3 {[%clk 0:02:38]}  h6 {[%clk 0:02:43]} 12. c3 {[%clk 0:02:36]}  Be6 {[%clk 0:02:42]} 13. Bc2 {[%clk 0:02:30]}  b4 {[%clk 0:01:35]} 14. d4 {[%clk 0:02:06]}  bxc3 {[%clk 0:01:32]} 15. bxc3 {[%clk 0:02:07]}  exd4 {[%clk 0:01:31]} 16. cxd4 {[%clk 0:02:08]}  Nb4 {[%clk 0:01:31]} 17. Ba4 {[%clk 0:02:04]}  Bc4 {[%clk 0:01:27]} 18. Na3 {[%clk 0:01:45]}  Bd3 {[%clk 0:01:08]} 19. Bd2 {[%clk 0:01:27]}  Bxe4 {[%clk 0:01:04]} 20. Bb5 {[%clk 0:00:55]}  c5 {[%clk 0:00:48]} 21. Bf1 {[%clk 0:00:39]}  Bh7 {[%clk 0:00:26]} 22. dxc5 {[%clk 0:00:34]}  dxc5 {[%clk 0:00:26]} 23. Ne5 {[%clk 0:00:34]}  Qc7 {[%clk 0:00:06]} 24. Bc4 {[%clk 0:00:30]}  Ne4 {[%clk 0:00:04]} 25. Bf4 {[%clk 0:00:20]}  Bd6 {[%clk 0:00:03]} 26. Nb5 {[%clk 0:00:12]}  Rxb5 {[%clk 0:00:03]} 27. Bxb5 {[%clk 0:00:13]}  Bxe5 {[%clk 0:00:04]} 28. Bxe5 {[%clk 0:00:12]}  Qxe5 {[%clk 0:00:05]} 29. f3 {[%clk 0:00:13]}  Qg3 {[%clk 0:00:04]} 30. fxe4 {[%clk 0:00:12]}  Re8 {[%clk 0:00:02]} 31. Qf3 {[%clk 0:00:10]}  Qxf3 {[%clk 0:00:02]} 32. gxf3 {[%clk 0:00:11]}  Rd8 {[%clk 0:00:03]} 33. Rad1 {[%clk 0:00:10]}  Rb8 {[%clk 0:00:03]} 34. Bc4 {[%clk 0:00:10]}  Bg6 {[%clk 0:00:04]} 35. Rd7 {[%clk 0:00:10]}  Nc6 {[%clk 0:00:04]} 36. Rd6 {[%clk 0:00:10]}  Ne7 {[%clk 0:00:03]} 37. f4 {[%clk 0:00:09]}  Kh7 {[%clk 0:00:03]} 38. f5 {[%clk 0:00:10]}  Bh5 {[%clk 0:00:03]} 39. Rd7 {[%clk 0:00:10]}  Nc6 {[%clk 0:00:03]} 40. Bxf7 {[%clk 0:00:08]}  Ne5 {[%clk 0:00:03]} 41. Bxh5 {[%clk 0:00:09]}  Rf8 {[%clk 0:00:02]} 42. Bg6+ {[%clk 0:00:08]}  Nxg6 {[%clk 0:00:02]} 43. fxg6+ {[%clk 0:00:09]}  Kxg6 {[%clk 0:00:03]} 44. Rd6+ {[%clk 0:00:09]}  Kh7 {[%clk 0:00:03]} 45. Rf1 {[%clk 0:00:09]}  Re8 {[%clk 0:00:03]} 46. Re1 {[%clk 0:00:08]}  c4 {[%clk 0:00:03]} 47. Rc6 {[%clk 0:00:09]} 1-0


[Site "https://www.chess.com"]

[Event "Titled Tuesday Blitz April 25 Early 2023"]
[White "Ciuffoletti, Paolo"]
[Black "Pandey Srishti"]
[WhiteFideId "807630"]
[BlackFideId "35093290"]
[WhiteElo "2143"]
[BlackElo "2083"]
[Result "0-1"]
[Round "05"]
[TimeControl "180+2"]
[Date "2023.04.25"]
[WhiteClock "0:00:03"]
[BlackClock "0:00:09"]

1. e4 {[%clk 0:03:00]}  e5 {[%clk 0:02:58]} 2. Nf3 {[%clk 0:03:00]}  Nc6 {[%clk 0:02:57]} 3. Bc4 {[%clk 0:02:59]}  Bc5 {[%clk 0:02:55]} 4. b4 {[%clk 0:02:59]}  Bxb4 {[%clk 0:02:55]} 5. c3 {[%clk 0:02:59]}  Be7 {[%clk 0:02:54]} 6. d4 {[%clk 0:02:59]}  Na5 {[%clk 0:02:53]} 7. Nxe5 {[%clk 0:02:54]}  Nxc4 {[%clk 0:02:52]} 8. Nxc4 {[%clk 0:02:54]}  d5 {[%clk 0:02:53]} 9. exd5 {[%clk 0:02:53]}  Qxd5 {[%clk 0:02:53]} 10. Ne3 {[%clk 0:02:54]}  Qd8 {[%clk 0:02:46]} 11. O-O {[%clk 0:02:53]}  Nf6 {[%clk 0:02:45]} 12. c4 {[%clk 0:02:46]}  O-O {[%clk 0:02:40]} 13. Bb2 {[%clk 0:02:43]}  a6 {[%clk 0:02:35]} 14. Qf3 {[%clk 0:02:32]}  Rb8 {[%clk 0:02:32]} 15. d5 {[%clk 0:02:11]}  Nd7 {[%clk 0:02:25]} 16. Nd2 {[%clk 0:01:40]}  Bf6 {[%clk 0:02:24]} 17. Bxf6 {[%clk 0:01:26]}  Qxf6 {[%clk 0:02:21]} 18. Qg3 {[%clk 0:01:05]}  b5 {[%clk 0:00:51]} 19. Qxc7 {[%clk 0:00:49]}  bxc4 {[%clk 0:00:48]} 20. Ndxc4 {[%clk 0:00:47]}  Rb7 {[%clk 0:00:30]} 21. Qg3 {[%clk 0:00:40]}  Nb6 {[%clk 0:00:20]} 22. Nd6 {[%clk 0:00:31]}  Re7 {[%clk 0:00:19]} 23. Nxc8 {[%clk 0:00:30]}  Nxc8 {[%clk 0:00:18]} 24. Rad1 {[%clk 0:00:30]}  Nd6 {[%clk 0:00:18]} 25. Qg4 {[%clk 0:00:22]}  Re4 {[%clk 0:00:18]} 26. Qd7 {[%clk 0:00:21]}  Rd8 {[%clk 0:00:17]} 27. Qc7 {[%clk 0:00:20]}  Ra4 {[%clk 0:00:16]} 28. Rb1 {[%clk 0:00:18]}  g6 {[%clk 0:00:12]} 29. Rb8 {[%clk 0:00:17]}  Rxb8 {[%clk 0:00:13]} 30. Qxb8+ {[%clk 0:00:16]}  Kg7 {[%clk 0:00:13]} 31. h3 {[%clk 0:00:17]}  Rxa2 {[%clk 0:00:13]} 32. Qc7 {[%clk 0:00:14]}  Ne4 {[%clk 0:00:12]} 33. Ng4 {[%clk 0:00:09]}  Qd4 {[%clk 0:00:11]} 34. Qe5+ {[%clk 0:00:07]}  Qxe5 {[%clk 0:00:11]} 35. Nxe5 {[%clk 0:00:07]}  Rd2 {[%clk 0:00:11]} 36. f3 {[%clk 0:00:05]}  Ng3 {[%clk 0:00:10]} 37. Rf2 {[%clk 0:00:03]}  Rd1+ {[%clk 0:00:08]} 38. Kh2 {[%clk 0:00:03]}  Nf1+ {[%clk 0:00:08]} 39. Kg1 {[%clk 0:00:03]}  Ne3+ {[%clk 0:00:09]} 40. Kh2 {[%clk 0:00:03]}  Rxd5 {[%clk 0:00:09]} 0-1


[Site "https://www.chess.com"]

[Event "Titled Tuesday Blitz April 25 Early 2023"]
[White "GregLeBarbare"]
[Black "Fernandez Garcia, Gumersindo"]
[BlackFideId "24516740"]
[WhiteElo "2166"]
[BlackElo "2093"]
[Result "0-1"]
[Round "05"]
[TimeControl "180+2"]
[Date "2023.04.25"]
[WhiteClock "0:00:04"]
[BlackClock "0:00:43"]

1. d4 {[%clk 0:03:00]}  Nf6 {[%clk 0:03:00]} 2. Nf3 {[%clk 0:02:59]}  e6 {[%clk 0:02:53]} 3. Bf4 {[%clk 0:02:58]}  c5 {[%clk 0:02:53]} 4. e3 {[%clk 0:02:55]}  Nc6 {[%clk 0:02:52]} 5. c3 {[%clk 0:02:51]}  b6 {[%clk 0:02:52]} 6. Nbd2 {[%clk 0:02:51]}  Bb7 {[%clk 0:02:52]} 7. Nc4 {[%clk 0:02:46]}  d6 {[%clk 0:02:52]} 8. dxc5 {[%clk 0:02:30]}  e5 {[%clk 0:02:32]} 9. Bg3 {[%clk 0:01:47]}  bxc5 {[%clk 0:02:30]} 10. Qa4 {[%clk 0:01:30]}  Be7 {[%clk 0:02:25]} 11. Rd1 {[%clk 0:01:29]}  Qc7 {[%clk 0:02:22]} 12. Be2 {[%clk 0:00:28]}  O-O {[%clk 0:02:21]} 13. O-O {[%clk 0:00:28]}  Ne4 {[%clk 0:02:15]} 14. Nfd2 {[%clk 0:00:23]}  Nxg3 {[%clk 0:02:15]} 15. hxg3 {[%clk 0:00:24]}  d5 {[%clk 0:02:15]} 16. Na3 {[%clk 0:00:21]}  a6 {[%clk 0:02:12]} 17. c4 {[%clk 0:00:18]}  d4 {[%clk 0:02:12]} 18. Bf3 {[%clk 0:00:18]}  Rad8 {[%clk 0:02:09]} 19. Bd5 {[%clk 0:00:17]}  Nb4 {[%clk 0:02:04]} 20. e4 {[%clk 0:00:18]}  Bxd5 {[%clk 0:01:59]} 21. cxd5 {[%clk 0:00:18]}  f5 {[%clk 0:01:54]} 22. f3 {[%clk 0:00:17]}  Bg5 {[%clk 0:01:50]} 23. Ndc4 {[%clk 0:00:16]}  d3 {[%clk 0:01:36]} 24. Qb3 {[%clk 0:00:10]}  Rf6 {[%clk 0:01:31]} 25. Qc3 {[%clk 0:00:08]}  fxe4 {[%clk 0:01:27]} 26. fxe4 {[%clk 0:00:07]}  Rdf8 {[%clk 0:01:27]} 27. Qxe5 {[%clk 0:00:06]}  Rxf1+ {[%clk 0:01:17]} 28. Rxf1 {[%clk 0:00:06]}  Rxf1+ {[%clk 0:01:17]} 29. Kxf1 {[%clk 0:00:07]}  Qf7+ {[%clk 0:01:17]} 30. Qf5 {[%clk 0:00:04]}  Nc2 {[%clk 0:01:11]} 31. Qxf7+ {[%clk 0:00:04]}  Kxf7 {[%clk 0:01:11]} 32. d6 {[%clk 0:00:03]}  Nd4 {[%clk 0:01:06]} 33. Ke1 {[%clk 0:00:01]}  Ke6 {[%clk 0:01:05]} 34. Kd1 {[%clk 0:00:01]}  Ne2 {[%clk 0:01:02]} 35. Nb1 {[%clk 0:00:02]}  Nxg3 {[%clk 0:01:00]} 36. Nc3 {[%clk 0:00:02]}  h5 {[%clk 0:00:56]} 37. e5 {[%clk 0:00:03]}  Nf5 {[%clk 0:00:49]} 38. Nb6 {[%clk 0:00:02]}  Ne3+ {[%clk 0:00:47]} 39. Kd2 {[%clk 0:00:01]}  Nc4+ {[%clk 0:00:47]} 40. Kxd3 {[%clk 0:00:02]}  Nxb6 {[%clk 0:00:48]} 41. Ne4 {[%clk 0:00:01]}  Bd8 {[%clk 0:00:46]} 42. Nxc5+ {[%clk 0:00:02]}  Kxe5 {[%clk 0:00:47]} 43. d7 {[%clk 0:00:02]}  Kd6 {[%clk 0:00:46]} 44. Nb7+ {[%clk 0:00:02]}  Kxd7 {[%clk 0:00:46]} 45. Nxd8 {[%clk 0:00:03]}  Kxd8 {[%clk 0:00:47]} 46. Ke4 {[%clk 0:00:03]}  Ke7 {[%clk 0:00:48]} 47. Kf5 {[%clk 0:00:03]}  Kf7 {[%clk 0:00:48]} 48. Kg5 {[%clk 0:00:04]}  g6 {[%clk 0:00:49]} 49. b4 {[%clk 0:00:02]}  Nd5 {[%clk 0:00:48]} 50. a3 {[%clk 0:00:03]}  Ne3 {[%clk 0:00:49]} 51. a4 {[%clk 0:00:03]}  Nxg2 {[%clk 0:00:48]} 52. b5 {[%clk 0:00:03]}  axb5 {[%clk 0:00:48]} 53. a5 {[%clk 0:00:03]}  Ne3 {[%clk 0:00:43]} 54. a6 {[%clk 0:00:04]}  Nd5 {[%clk 0:00:43]} 55. a7 {[%clk 0:00:04]}  Nc7 {[%clk 0:00:43]} 0-1


[Site "https://www.chess.com"]